{"text_format":"2","workbook":"xlsx","n_sheets":1,"sheets":["Abrechnung Kurzzeitpflege"],"not_rendered":{"charts":0,"images":0,"macros":0,"external_links":0,"defined_names":0,"comments":0,"pivot_tables":0},"unopened":[],"bounds":{"document_bytes":16777216,"sheet_cells":100000,"run_cost":"one","rows_first":2000,"rows_last":500,"rows_between":2000,"halvings":0,"cell_chars":16384,"cell_head_chars":4096},"cells_cut":0,"cells_raw":0,"read":"whole","date_system":"1900"}

{"sheet":"Abrechnung Kurzzeitpflege","index":0,"n_rows":36,"n_cols":9,"rows_kept":36,"cut":false,"hidden":false,"merged":[[0,1,0,2],[0,4,0,8]]}
["Einrichtung:","Pflegeeinrichtung Musterort",null,"Ort:","Musterplatz 5, 12587 Mustercity"]
[{"$nulls":7},"Abrechnungsmonat:","2017-01-01"]
[]
["Name","Vorname","Straße, PLZ Ort","P-Grad","Kurzzeitpflege von … bis …","Abwesenheitstage","Tage","Tagessatz","Summe"]
["Mustermann","Marianne","Musterstr. 5, 12345 Musterort",1,"05.01. - 30.01.",4,22,null,{"$f":"G5*H5","v":0}]
[{"$nulls":8},{"$f":"G6*H6","v":0}]
[{"$nulls":8},0]
[{"$nulls":8},0]
[{"$nulls":8},0]
[{"$nulls":8},0]
[{"$nulls":8},0]
[{"$nulls":8},0]
[{"$nulls":8},0]
[{"$nulls":8},0]
[{"$nulls":8},0]
[{"$nulls":8},0]
[{"$nulls":8},0]
[{"$nulls":8},0]
[{"$nulls":8},0]
[{"$nulls":8},0]
[{"$nulls":8},0]
[{"$nulls":8},0]
["Fristwahrend aufgeführt:",{"$nulls":7},0]
[{"$nulls":8},0]
[{"$nulls":8},0]
[{"$nulls":8},0]
[{"$nulls":8},0]
[{"$nulls":8},0]
[{"$nulls":8},0]
[{"$nulls":8},0]
[{"$nulls":4},"Summe",null,{"$f":"SUM(G5:G30)","v":22},null,{"$f":"SUM(I5:I30)","v":0}]
["Es besteht kein Anspruch auf Kriegsopferfürsorge."]
["Investitionskosten wurden den Bewohnerinnen und Bewohnern nicht in Rechnung gestellt."]
[]
[]
["Datum",null,"Stempel/Unterschrift"]